Entity,Pay date,Expense Type,Expense Area,Supplier,Transaction Number,Amount,Description
NS&I,20/06/2018,Unitary fee - Outsource partner,Commercial Contracts,Atos IT Services UK Ltd,4011795,"4,738,066.77",Unitary Service Charge - Jun 2018
NS&I,20/06/2018,Demand-linked costs - Outsource partner,Commercial Contracts,Atos IT Services UK Ltd,4011801,"1,669,263.00",Demand Link Service Charge - May 2018
NS&I,29/06/2018,Unitary fee - Outsource partner,B2B Government Payment Services,Atos IT Services UK Ltd,4011751,"1,206,481.44",Tax-Free Childcare Service Charges - April 2018
NS&I,04/06/2018,Maintenance and running costs - Outsource partner,Commercial Contracts,Atos IT Services UK Ltd,4011650,"830,162.00",Additional product operational costs
NS&I,29/06/2018,Unitary fee - Outsource partner,B2B Government Payment Services,Atos IT Services UK Ltd,4011887,"685,451.98",Help to save Service Charges - April 2018
NS&I,20/06/2018,Unitary fee - Outsource partner,B2B Government Payment Services,Atos IT Services UK Ltd,4011805,"611,086.17",Help To Save Project Charges - April 2018
NS&I,29/06/2018,Unitary fee - Outsource partner,B2B Government Payment Services,Atos IT Services UK Ltd,4011770,"429,842.47",Tax-free Childcare Project charges April 2018
NS&I,26/06/2018,Building services charge,Workplace & Culture,James Andrew International,4011834,"293,334.25",Quarterly Rent for Regional Office Q2 2018
NS&I,20/06/2018,Unitary fee - Outsource partner,B2B Government Payment Services,Atos IT Services UK Ltd,4011749,"271,539.53",30 Hours Free Childcare Service Charges April 2018
NS&I,29/06/2018,Unitary fee - Outsource partner,B2B Government Payment Services,Atos IT Services UK Ltd,4011722,"271,539.53",Tax-Free Childcare Service Charges April 2018
NS&I,20/06/2018,Unitary fee - Outsource partner,B2B Government Payment Services,Atos IT Services UK Ltd,4011748,"241,802.41",30 Hours Free Childcare Service Charges April 2018
NS&I,29/06/2018,Project costs - Outsource partner,Programme Delivery,Atos IT Services UK Ltd,4011865,"234,350.00",Software enhancement costs - May 2018
NS&I,20/06/2018,Rentals under operating leases,Workplace & Culture,Durham County Council - City of Durham,4011796,"203,507.10",Quarterly Rent for Regional Office Q3 2018
NS&I,20/06/2018,Unitary fee - Outsource partner,B2B Government Payment Services,Atos IT Services UK Ltd,4011747,"210,918.17",Home Office Service Charges - April 2018
NS&I,13/06/2018,Project costs - Outsource partner,Programme Delivery,Atos IT Services UK Ltd,4011732,"175,562.00",Software enhancement costs - April 2018
NS&I,26/06/2018,Project costs - Outsource partner,Programme Delivery,Atos IT Services UK Ltd,4011840,"172,876.00",Product Enhancement Cost - Apr 2018
NS&I,26/06/2018,Project costs - Outsource partner,Programme Delivery,Atos IT Services UK Ltd,4011841,"162,483.00",Product Enhancement Cost - Mar 2018
NS&I,20/06/2018,Unitary fee - Outsource partner,B2B Government Payment Services,Atos IT Services UK Ltd,4011771,"127,002.46",Court Funds Office Service Charges - May 2018
NS&I,13/06/2018,Project costs - Outsource partner,Transactional Customer Comms,Atos IT Services UK Ltd,4011670,"118,213.00",Update of forms involved in Transactions - April 2018
NS&I,20/06/2018,Internal audit fees,B2B Government Payment Services,Government Internal Audit Agency,4011803,"106,776.00",Court Funds Office Audit Fee for 2017/18
NS&I,29/06/2018,Project costs - Outsource partner,Programme Delivery,Atos IT Services UK Ltd,4011839,"105,750.00",Open Banking  - April 2018
NS&I,13/06/2018,Maintenance and running costs - Outsource partner,Commercial Contracts,Atos IT Services UK Ltd,4011741,"104,108.37",Servicing Products Connectivity Costs
NS&I,20/06/2018,Project costs - Outsource partner,Programme Delivery,Atos IT Services UK Ltd,4011794,"102,000.00",Transformation programme - Management cost - Apr 2018
NS&I,06/06/2018,Project costs - Outsource partner,Programme Delivery,Atos IT Services UK Ltd,4011593,"91,379.00",Open Banking  - March 2018
NS&I,29/06/2018,Project costs - Outsource partner,Programme Delivery,Atos IT Services UK Ltd,4011898,"88,507.00",Costs for strategic review of core banking engine
NS&I,13/06/2018,Project costs - Outsource partner,Programme Delivery,Atos IT Services UK Ltd,4011651,"87,308.00",Costs for delivering enhanced payment processing 
NS&I,13/06/2018,Market research,Market Intelligence & Research,Gfk UK Limited (FRS),4011723,"79,720.22",Subscription for Financial Research Survey - June - July 2018
NS&I,13/06/2018,Project costs - Outsource partner,Programme Delivery,Atos IT Services UK Ltd,4011637,"63,433.00",Costs for delivering Payments Services Directive 2 activities
NS&I,20/06/2018,Project costs - Outsource partner,Programme Delivery,Atos IT Services UK Ltd,4011721,"56,278.00",Costs for delivering IT orchestration improvements
NS&I,20/06/2018,Advertising and production,Marketing Communications,Carat (Registered as Dentsu Aegis UK Ltd),4011786,"55,589.56",Cost of Marketing Campaigns
NS&I,13/06/2018,Project costs - Outsource partner,Programme Delivery,Atos IT Services UK Ltd,4011639,"51,302.00",Costs for delivering product Terms and Conditions changes
NS&I,13/06/2018,Project costs - Outsource partner,Programme Delivery,Atos IT Services UK Ltd,4011638,"48,973.00",Costs for delivering Payments Services Directive 2 activities
NS&I,06/06/2018,Project costs - Outsource partner,Programme Delivery,Atos IT Services UK Ltd,4011589,"48,869.00",Website Improvement Costs - April 2018
NS&I,13/06/2018,Office equipment / Fixtures and fittings - Maintenance,Workplace & Culture,Atos IT Services UK Ltd,4011618,"38,177.00",Furniture and fittings
NS&I,20/06/2018,Web hosting,Commercial Contracts,Eggplant Live Limited,4011793,"37,378.80",NS&I Internet Performance Monitoring
NS&I,29/06/2018,Unitary fee - Outsource partner,B2B Government Payment Services,Atos IT Services UK Ltd,4011745,"31,908.76",Tax-Free Childcare Service Charges
NS&I,06/06/2018,Contract staff (Non-payroll),HR,IRG Advisers LLP Trading as Odgers Berndtson,4011682,"30,145.24",Non payroll staff costs
NS&I,13/06/2018,Project costs - Outsource partner,Programme Delivery,Atos IT Services UK Ltd,4011640,"29,339.00",Costs for delivering product changes
NS&I,13/06/2018,Purchasing card charges,Finance,NatWest 471505930101077,4011725,"28,959.41",Credit Card purchases - May 2018
NS&I,06/06/2018,Training and development costs,Intermediary Relationships,Chartered Institute for Securities & Investment,4011696,"27,240.00",Contract with professional body to provide support to Financial Advice firms and their customers
NS&I,13/06/2018,Other travel and travel services,Finance,Redfern Travel Limited,4011719,"26,583.78",Travel Data for 1 - 31 May 2018
NS&I,06/06/2018,Business intelligence and analysis,Business Insight,CACI Ltd,4011673,"25,161.60",Customer & Market Segmentation March 2018
